[Event "Late-Titled-Tuesday-Blitz-March-12-2024"]
[Site "Chess.com"]
[Date "2024.03.12"]
[Round "8"]
[White "IraZyne"]
[Black "Incognizance"]
[Result "1/2-1/2"]
[WhiteElo "2324"]
[BlackElo "1845"]
[TimeControl "180+1"]
[EndTime "15:25:54 PDT"]
[Termination "Game drawn - insufficient material"]

1. e4 {[%clk 0:01:50]} 1... c5 {[%clk 0:02:58.9]} 2. Nc3 {[%clk 0:01:49.8]} 2...
Nc6 {[%clk 0:02:58.9]} 3. g3 {[%clk 0:01:49.8]} 3... g6 {[%clk 0:02:59]} 4. d3
{[%clk 0:01:49.9]} 4... Bg7 {[%clk 0:02:59.7]} 5. Bg2 {[%clk 0:01:50.2]} 5... e5
{[%clk 0:02:59.7]} 6. Nh3 {[%clk 0:01:48.7]} 6... Nf6 {[%clk 0:02:57.3]} 7. O-O
{[%clk 0:01:48.4]} 7... d6 {[%clk 0:02:57.8]} 8. f4 {[%clk 0:01:45.7]} 8... exf4
{[%clk 0:02:52.6]} 9. Nxf4 {[%clk 0:01:44.7]} 9... O-O {[%clk 0:02:50.5]} 10. h3
{[%clk 0:01:43.1]} 10... Bd7 {[%clk 0:02:49.5]} 11. Be3 {[%clk 0:01:42.8]} 11...
a6 {[%clk 0:02:48.7]} 12. Qd2 {[%clk 0:01:41.6]} 12... Qc8 {[%clk 0:02:45.7]}
13. Kh2 {[%clk 0:01:39.6]} 13... Be6 {[%clk 0:02:46.1]} 14. Nxe6 {[%clk
0:01:34.3]} 14... fxe6 {[%clk 0:02:46.1]} 15. Bh6 {[%clk 0:01:33.6]} 15... Qd7
{[%clk 0:02:37.6]} 16. Ne2 {[%clk 0:01:31.9]} 16... Nh5 {[%clk 0:02:32.3]} 17.
Bxg7 {[%clk 0:01:29.9]} 17... Qxg7 {[%clk 0:02:30.9]} 18. c3 {[%clk 0:01:27.9]}
18... Rxf1 {[%clk 0:02:24.6]} 19. Rxf1 {[%clk 0:01:26.9]} 19... Rf8 {[%clk
0:02:25.5]} 20. Rxf8+ {[%clk 0:01:26]} 20... Qxf8 {[%clk 0:02:26.4]} 21. Qe3
{[%clk 0:01:25.8]} 21... Ne5 {[%clk 0:02:23.5]} 22. b3 {[%clk 0:01:14.8]} 22...
b5 {[%clk 0:02:00]} 23. d4 {[%clk 0:01:13.4]} 23... cxd4 {[%clk 0:01:58.2]} 24.
cxd4 {[%clk 0:01:13.3]} 24... Nd7 {[%clk 0:01:53.1]} 25. Nf4 {[%clk 0:01:11.8]}
25... Nxf4 {[%clk 0:01:52.3]} 26. gxf4 {[%clk 0:01:11.9]} 26... e5 {[%clk
0:01:50.9]} 27. fxe5 {[%clk 0:01:10.6]} 27... dxe5 {[%clk 0:01:50.9]} 28. d5
{[%clk 0:01:10.7]} 28... Qf4+ {[%clk 0:01:50.5]} 29. Qxf4 {[%clk 0:01:10]} 29...
exf4 {[%clk 0:01:51.4]} 30. Kg1 {[%clk 0:01:05.4]} 30... Kf7 {[%clk 0:01:51.3]}
31. Kf2 {[%clk 0:01:05.1]} 31... Kf6 {[%clk 0:01:51.6]} 32. h4 {[%clk
0:01:03.4]} 32... Ke5 {[%clk 0:01:50.8]} 33. Bh3 {[%clk 0:00:53.2]} 33... Nc5
{[%clk 0:01:47.7]} 34. Bg2 {[%clk 0:00:51.1]} 34... h6 {[%clk 0:01:47.2]} 35.
Bf3 {[%clk 0:00:50.2]} 35... g5 {[%clk 0:01:45.1]} 36. hxg5 {[%clk 0:00:50]}
36... hxg5 {[%clk 0:01:45.6]} 37. Kg2 {[%clk 0:00:50.1]} 37... Nd3 {[%clk
0:01:37.7]} 38. Kh3 {[%clk 0:00:45.3]} 38... Nc1 {[%clk 0:01:30.1]} 39. Kg4
{[%clk 0:00:45]} 39... Nxa2 {[%clk 0:01:30]} 40. Kxg5 {[%clk 0:00:44.8]} 40...
Nc1 {[%clk 0:01:27.4]} 41. d6 {[%clk 0:00:42.6]} 41... Kxd6 {[%clk 0:01:26.1]}
42. Kxf4 {[%clk 0:00:42.5]} 42... Nxb3 {[%clk 0:01:26.2]} 43. e5+ {[%clk
0:00:42.8]} 43... Ke7 {[%clk 0:01:24.5]} 44. Bd5 {[%clk 0:00:42]} 44... Nc5
{[%clk 0:01:23.7]} 45. Ke3 {[%clk 0:00:41.1]} 45... Nd7 {[%clk 0:01:20.5]} 46.
Kd4 {[%clk 0:00:40]} 46... a5 {[%clk 0:01:16.4]} 47. e6 {[%clk 0:00:38.8]} 47...
Nf8 {[%clk 0:01:10.9]} 48. Kc5 {[%clk 0:00:38]} 48... Nxe6+ {[%clk 0:01:09.8]}
49. Bxe6 {[%clk 0:00:37.9]} 49... Kxe6 {[%clk 0:01:08.1]} 50. Kxb5 {[%clk
0:00:38.4]} 50... a4 {[%clk 0:01:08.5]} 51. Kxa4 {[%clk 0:00:38.1]} 1/2-1/2

[Event "Late-Titled-Tuesday-Blitz-March-12-2024"]
[Site "Chess.com"]
[Date "2024.03.12"]
[Round "8"]
[White "Matalon"]
[Black "ferdipy"]
[Result "0-1"]
[WhiteElo "2476"]
[BlackElo "2330"]
[TimeControl "180+1"]
[EndTime "15:25:56 PDT"]
[Termination "ferdipy won by resignation"]

1. e4 {[%clk 0:02:40.4]} 1... e6 {[%clk 0:02:55.5]} 2. d4 {[%clk 0:02:35.8]}
2... d5 {[%clk 0:02:54.9]} 3. Nd2 {[%clk 0:02:36.1]} 3... Nf6 {[%clk 0:02:53.9]}
4. Bd3 {[%clk 0:02:32.6]} 4... Be7 {[%clk 0:02:42.9]} 5. c3 {[%clk 0:02:20.5]}
5... c5 {[%clk 0:02:40.7]} 6. e5 {[%clk 0:02:13.7]} 6... Nfd7 {[%clk 0:02:40]}
7. Ne2 {[%clk 0:02:12.5]} 7... Nc6 {[%clk 0:02:39.4]} 8. f4 {[%clk 0:02:10.4]}
8... f6 {[%clk 0:02:38.4]} 9. Nf3 {[%clk 0:02:07.7]} 9... O-O {[%clk 0:02:37.9]}
10. O-O {[%clk 0:02:06.9]} 10... a6 {[%clk 0:02:27.8]} 11. a3 {[%clk 0:01:59.8]}
11... b5 {[%clk 0:02:24]} 12. b4 {[%clk 0:01:57.9]} 12... cxd4 {[%clk
0:02:23.5]} 13. cxd4 {[%clk 0:01:57.1]} 13... Nb6 {[%clk 0:02:23.3]} 14. Kh1
{[%clk 0:01:43.2]} 14... Bd7 {[%clk 0:02:23.1]} 15. Ng3 {[%clk 0:01:31.7]} 15...
Nc4 {[%clk 0:02:20.3]} 16. Qc2 {[%clk 0:01:22.4]} 16... f5 {[%clk 0:02:06.6]}
17. Ne2 {[%clk 0:01:16.1]} 17... a5 {[%clk 0:01:43.5]} 18. bxa5 {[%clk
0:01:14.3]} 18... Rxa5 {[%clk 0:01:41.8]} 19. g4 {[%clk 0:01:09.4]} 19... g6
{[%clk 0:01:36.1]} 20. Rg1 {[%clk 0:01:06.4]} 20... Nb4 {[%clk 0:01:31.2]} 21.
axb4 {[%clk 0:01:01.9]} 21... Rxa1 {[%clk 0:01:30.7]} 22. gxf5 {[%clk 0:01:02]}
22... exf5 {[%clk 0:01:28.2]} 23. Nc3 {[%clk 0:00:56.6]} 23... Bxb4 {[%clk
0:01:20.7]} 24. Nxd5 {[%clk 0:00:55.1]} 24... Bc6 {[%clk 0:01:16.2]} 25. Nf6+
{[%clk 0:00:44]} 25... Rxf6 {[%clk 0:01:13.7]} 26. exf6 {[%clk 0:00:43.9]} 26...
Bxf3+ {[%clk 0:01:13.8]} 27. Rg2 {[%clk 0:00:38.2]} 27... Qd5 {[%clk 0:00:29.5]}
28. h4 {[%clk 0:00:30.6]} 28... Bxg2+ {[%clk 0:00:25.2]} 0-1

[Event "Late-Titled-Tuesday-Blitz-March-12-2024"]
[Site "Chess.com"]
[Date "2024.03.12"]
[Round "8"]
[White "alexrustemov"]
[Black "Bugcrusher"]
[Result "1-0"]
[WhiteElo "2831"]
[BlackElo "2533"]
[TimeControl "180+1"]
[EndTime "15:25:58 PDT"]
[Termination "alexrustemov won by resignation"]

1. d4 {[%clk 0:03:00.1]} 1... Nf6 {[%clk 0:02:57.9]} 2. c4 {[%clk 0:02:59.8]}
2... e6 {[%clk 0:02:58.2]} 3. g3 {[%clk 0:02:58.5]} 3... d5 {[%clk 0:02:57.7]}
4. Bg2 {[%clk 0:02:58.4]} 4... dxc4 {[%clk 0:02:56.9]} 5. Nf3 {[%clk 0:02:58.2]}
5... Bd7 {[%clk 0:02:56.7]} 6. O-O {[%clk 0:02:42.9]} 6... Bc6 {[%clk
0:02:52.2]} 7. Qc2 {[%clk 0:02:31.7]} 7... b5 {[%clk 0:02:48.3]} 8. b3 {[%clk
0:02:23.1]} 8... cxb3 {[%clk 0:02:42.4]} 9. axb3 {[%clk 0:02:22.5]} 9... Be4
{[%clk 0:02:36.8]} 10. Qa2 {[%clk 0:02:17.9]} 10... Bb4 {[%clk 0:02:22]} 11. Ba3
{[%clk 0:02:11.8]} 11... a5 {[%clk 0:02:10.6]} 12. Nbd2 {[%clk 0:02:07.6]} 12...
Bb7 {[%clk 0:02:01.4]} 13. Rfc1 {[%clk 0:01:58.1]} 13... O-O {[%clk 0:02:00.3]}
14. e3 {[%clk 0:01:53.8]} 14... Nbd7 {[%clk 0:01:53.7]} 15. Qc2 {[%clk
0:01:50.8]} 15... Nd5 {[%clk 0:01:32.1]} 16. Ne1 {[%clk 0:01:48.2]} 16... Bxa3
{[%clk 0:01:31]} 17. Rxa3 {[%clk 0:01:47.7]} 17... c6 {[%clk 0:01:15.2]} 18. Nd3
{[%clk 0:01:45.5]} 18... Nb4 {[%clk 0:01:14.8]} 19. Nxb4 {[%clk 0:01:30.5]}
19... axb4 {[%clk 0:01:14.7]} 20. Rxa8 {[%clk 0:01:31.2]} 20... Qxa8 {[%clk
0:01:14.8]} 21. Ne4 {[%clk 0:01:31.7]} 21... Qb8 {[%clk 0:01:06.5]} 22. Nc5
{[%clk 0:01:30.3]} 22... Nxc5 {[%clk 0:00:58]} 23. Qxc5 {[%clk 0:01:31.2]} 23...
Rc8 {[%clk 0:00:54]} 24. Qxb4 {[%clk 0:01:30.4]} 24... e5 {[%clk 0:00:54.1]} 25.
dxe5 {[%clk 0:01:24.1]} 25... Qxe5 {[%clk 0:00:53.3]} 26. h4 {[%clk 0:01:13.2]}
26... g6 {[%clk 0:00:43.1]} 27. Qd2 {[%clk 0:01:12.5]} 27... Qe7 {[%clk
0:00:37]} 28. b4 {[%clk 0:01:05.9]} 28... Rd8 {[%clk 0:00:33.7]} 29. Qc3 {[%clk
0:01:05.3]} 29... Rd6 {[%clk 0:00:28.4]} 30. Qc5 {[%clk 0:01:03.6]} 30... h5
{[%clk 0:00:26]} 31. Bf3 {[%clk 0:01:01.3]} 31... Qd7 {[%clk 0:00:25.6]} 32. Kg2
{[%clk 0:01:00.6]} 32... Qe6 {[%clk 0:00:16.7]} 33. Ra1 {[%clk 0:00:59.1]} 33...
Qd7 {[%clk 0:00:16.5]} 34. Ra7 {[%clk 0:00:58.5]} 34... Kg7 {[%clk 0:00:14.8]}
35. Rxb7 {[%clk 0:00:57.4]} 1-0

[Event "Late-Titled-Tuesday-Blitz-March-12-2024"]
[Site "Chess.com"]
[Date "2024.03.12"]
[Round "8"]
[White "Skatchkov_V"]
[Black "artin10862"]
[Result "0-1"]
[WhiteElo "2687"]
[BlackElo "2898"]
[TimeControl "180+1"]
[EndTime "15:26:01 PDT"]
[Termination "artin10862 won by resignation"]

1. d4 {[%clk 0:03:00.9]} 1... e6 {[%clk 0:02:55.7]} 2. c4 {[%clk 0:03:00.7]}
2... Bb4+ {[%clk 0:02:55.4]} 3. Nd2 {[%clk 0:02:59.8]} 3... Nf6 {[%clk
0:02:50.7]} 4. Nf3 {[%clk 0:02:59.9]} 4... O-O {[%clk 0:02:47.9]} 5. a3 {[%clk
0:02:59.6]} 5... Bxd2+ {[%clk 0:02:46.9]} 6. Qxd2 {[%clk 0:02:59]} 6... a5
{[%clk 0:02:45.3]} 7. b3 {[%clk 0:02:58.5]} 7... b6 {[%clk 0:02:45.1]} 8. e3
{[%clk 0:02:58.9]} 8... Bb7 {[%clk 0:02:45.2]} 9. Be2 {[%clk 0:02:59.6]} 9... d6
{[%clk 0:02:45.2]} 10. O-O {[%clk 0:02:59.9]} 10... Nbd7 {[%clk 0:02:45.6]} 11.
Bb2 {[%clk 0:02:54.4]} 11... Qe7 {[%clk 0:02:44.9]} 12. b4 {[%clk 0:02:45.9]}
12... Ne4 {[%clk 0:02:24.7]} 13. Qc2 {[%clk 0:02:45.6]} 13... f5 {[%clk
0:02:25]} 14. d5 {[%clk 0:02:45.8]} 14... e5 {[%clk 0:02:06.5]} 15. Bd3 {[%clk
0:02:45.2]} 15... axb4 {[%clk 0:01:53.8]} 16. axb4 {[%clk 0:02:44]} 16... b5
{[%clk 0:01:53.9]} 17. c5 {[%clk 0:01:55.1]} 17... Bxd5 {[%clk 0:01:49.5]} 18.
Bxb5 {[%clk 0:01:53.5]} 18... Ndf6 {[%clk 0:01:41]} 19. Rfd1 {[%clk 0:01:45.3]}
19... Qe6 {[%clk 0:01:34.8]} 20. Rxa8 {[%clk 0:01:12.5]} 20... Rxa8 {[%clk
0:01:32.4]} 21. cxd6 {[%clk 0:01:05.8]} 21... cxd6 {[%clk 0:01:26.9]} 22. Qc7
{[%clk 0:00:31.7]} 22... Rc8 {[%clk 0:01:19.7]} 23. Qb6 {[%clk 0:00:26.5]} 23...
Rc2 {[%clk 0:01:18.2]} 24. Qb8+ {[%clk 0:00:18.1]} 24... Kf7 {[%clk 0:01:14.6]}
25. Ba1 {[%clk 0:00:16.9]} 25... h6 {[%clk 0:01:10.2]} 26. Qa7+ {[%clk 0:00:08]}
26... Kg8 {[%clk 0:01:04.8]} 27. Bf1 {[%clk 0:00:01.7]} 27... Nxf2 {[%clk
0:01:01.5]} 28. b5 {[%clk 0:00:01.9]} 28... Nxd1 {[%clk 0:01:00.7]} 29. b6
{[%clk 0:00:01.9]} 29... Nxe3 {[%clk 0:00:57.4]} 0-1

[Event "Late-Titled-Tuesday-Blitz-March-12-2024"]
[Site "Chess.com"]
[Date "2024.03.12"]
[Round "8"]
[White "kingofthenil"]
[Black "ChessLover0108"]
[Result "0-1"]
[WhiteElo "2767"]
[BlackElo "2949"]
[TimeControl "180+1"]
[EndTime "15:26:08 PDT"]
[Termination "ChessLover0108 won by resignation"]

1. e4 {[%clk 0:03:00.9]} 1... c5 {[%clk 0:02:43.8]} 2. d3 {[%clk 0:03:01.2]}
2... g6 {[%clk 0:02:43.5]} 3. g3 {[%clk 0:03:01.7]} 3... Bg7 {[%clk 0:02:44.4]}
4. Bg2 {[%clk 0:03:02.6]} 4... Nc6 {[%clk 0:02:44.9]} 5. f4 {[%clk 0:03:03.2]}
5... b6 {[%clk 0:02:45.8]} 6. Nf3 {[%clk 0:03:03]} 6... Bb7 {[%clk 0:02:46.7]}
7. O-O {[%clk 0:03:03.6]} 7... e6 {[%clk 0:02:47.6]} 8. c3 {[%clk 0:03:03.1]}
8... d5 {[%clk 0:02:46.7]} 9. Na3 {[%clk 0:03:00.4]} 9... Nge7 {[%clk
0:02:46.1]} 10. e5 {[%clk 0:02:59.2]} 10... O-O {[%clk 0:02:46.2]} 11. Be3
{[%clk 0:02:59.3]} 11... d4 {[%clk 0:02:45.3]} 12. cxd4 {[%clk 0:02:58.7]} 12...
Nxd4 {[%clk 0:02:41.1]} 13. Nxd4 {[%clk 0:02:44.2]} 13... Bxg2 {[%clk
0:02:19.2]} 14. Kxg2 {[%clk 0:02:42.8]} 14... cxd4 {[%clk 0:02:18.6]} 15. Bf2
{[%clk 0:02:43.7]} 15... Rc8 {[%clk 0:02:17.1]} 16. Qf3 {[%clk 0:02:39.4]} 16...
Nd5 {[%clk 0:02:11]} 17. Rfc1 {[%clk 0:02:24.5]} 17... Qd7 {[%clk 0:02:06.5]}
18. Nc4 {[%clk 0:02:23.6]} 18... Rfd8 {[%clk 0:02:00]} 19. Nd6 {[%clk
0:02:20.8]} 19... Rxc1 {[%clk 0:02:00.6]} 20. Rb1 {[%clk 0:02:21.7]} 20... Bf8
{[%clk 0:02:01.3]} 21. Rxc1 {[%clk 0:01:56.1]} 21... Bxd6 {[%clk 0:01:42.8]} 22.
exd6 {[%clk 0:01:44.4]} 22... Qxd6 {[%clk 0:01:43.7]} 23. Qe4 {[%clk 0:00:19]}
23... Ne3+ {[%clk 0:01:37.6]} 24. Kf3 {[%clk 0:00:19]} 24... h5 {[%clk
0:01:34.8]} 25. Bxe3 {[%clk 0:00:15.9]} 25... dxe3 {[%clk 0:01:35.7]} 26. Kxe3
{[%clk 0:00:16.8]} 26... Qe7 {[%clk 0:01:30]} 27. a3 {[%clk 0:00:13.2]} 27...
Rd5 {[%clk 0:01:28.5]} 28. Rc8+ {[%clk 0:00:10.6]} 28... Kh7 {[%clk 0:01:24.8]}
29. Qc4 {[%clk 0:00:11.5]} 29... Qf6 {[%clk 0:01:20.2]} 30. Qc3 {[%clk
0:00:11.6]} 30... e5 {[%clk 0:01:17.7]} 31. Ke4 {[%clk 0:00:08.7]} 31... Rd4+
{[%clk 0:01:15.7]} 32. Ke3 {[%clk 0:00:09.3]} 32... exf4+ {[%clk 0:01:16.3]} 33.
gxf4 {[%clk 0:00:09.6]} 33... Qxf4+ {[%clk 0:01:17.2]} 34. Ke2 {[%clk
0:00:10.1]} 34... Qxh2+ {[%clk 0:01:15.8]} 35. Ke3 {[%clk 0:00:10]} 35... Qe5+
{[%clk 0:01:10.3]} 36. Kd2 {[%clk 0:00:10.4]} 36... h4 {[%clk 0:01:11]} 37. Kc2
{[%clk 0:00:03.5]} 37... h3 {[%clk 0:01:09.1]} 38. Rc4 {[%clk 0:00:02.9]} 38...
Rxc4 {[%clk 0:01:07.9]} 39. Qxc4 {[%clk 0:00:01.8]} 39... Qc5 {[%clk 0:01:08]}
40. Qxc5 {[%clk 0:00:01.9]} 40... bxc5 {[%clk 0:01:08.9]} 41. d4 {[%clk
0:00:02.4]} 41... cxd4 {[%clk 0:01:09]} 42. b4 {[%clk 0:00:03]} 42... h2 {[%clk
0:01:09.9]} 43. b5 {[%clk 0:00:03.9]} 43... h1=Q {[%clk 0:01:10.8]} 44. b6
{[%clk 0:00:04.8]} 44... axb6 {[%clk 0:01:11.3]} 0-1

[Event "Late-Titled-Tuesday-Blitz-March-12-2024"]
[Site "Chess.com"]
[Date "2024.03.12"]
[Round "8"]
[White "YEIKO2017"]
[Black "amiralfio"]
[Result "0-1"]
[WhiteElo "2444"]
[BlackElo "2665"]
[TimeControl "180+1"]
[EndTime "15:26:09 PDT"]
[Termination "amiralfio won on time"]

1. e4 {[%clk 0:02:55.7]} 1... e5 {[%clk 0:02:59.5]} 2. Nf3 {[%clk 0:02:55.5]}
2... Nc6 {[%clk 0:03:00.1]} 3. Bb5 {[%clk 0:02:55.6]} 3... d6 {[%clk 0:02:59.9]}
4. d4 {[%clk 0:02:54.2]} 4... Bd7 {[%clk 0:02:58.4]} 5. O-O {[%clk 0:02:47]}
5... Nf6 {[%clk 0:02:55.7]} 6. Nc3 {[%clk 0:02:45.4]} 6... g6 {[%clk 0:02:51.9]}
7. Bxc6 {[%clk 0:02:17.5]} 7... Bxc6 {[%clk 0:02:52.8]} 8. dxe5 {[%clk
0:02:17.3]} 8... Nxe4 {[%clk 0:02:45.9]} 9. Nxe4 {[%clk 0:02:12.7]} 9... Bxe4
{[%clk 0:02:46.8]} 10. Qd4 {[%clk 0:02:12.1]} 10... Bxf3 {[%clk 0:02:40.9]} 11.
gxf3 {[%clk 0:02:05.3]} 11... Bg7 {[%clk 0:02:38.9]} 12. Qe4 {[%clk 0:01:35]}
12... O-O {[%clk 0:02:23.2]} 13. exd6 {[%clk 0:01:31.6]} 13... Qxd6 {[%clk
0:02:24.1]} 14. Re1 {[%clk 0:01:13.6]} 14... Qb6 {[%clk 0:01:44.8]} 15. Kg2
{[%clk 0:01:03.5]} 15... Rad8 {[%clk 0:01:41]} 16. Be3 {[%clk 0:00:48.1]} 16...
Qb5 {[%clk 0:01:29.3]} 17. Rad1 {[%clk 0:00:32.1]} 17... Rde8 {[%clk 0:01:11]}
18. Qd3 {[%clk 0:00:30.9]} 18... Qxb2 {[%clk 0:01:06.9]} 19. Rb1 {[%clk
0:00:29]} 19... Qxa2 {[%clk 0:01:07]} 20. Rxb7 {[%clk 0:00:29.6]} 20... a5
{[%clk 0:01:01.1]} 21. Rxc7 {[%clk 0:00:28.8]} 21... a4 {[%clk 0:01:01.7]} 22.
Ra7 {[%clk 0:00:25.9]} 22... Ra8 {[%clk 0:01:01.1]} 23. Rxa8 {[%clk 0:00:13.5]}
23... Rxa8 {[%clk 0:01:02]} 24. Qe4 {[%clk 0:00:13.3]} 24... Rc8 {[%clk
0:00:58.8]} 25. Qb7 {[%clk 0:00:10.5]} 25... Qc4 {[%clk 0:00:52]} 26. Rd1 {[%clk
0:00:08.7]} 26... a3 {[%clk 0:00:45.6]} 27. Rd7 {[%clk 0:00:07.5]} 27... a2
{[%clk 0:00:43.5]} 0-1

[Event "Late-Titled-Tuesday-Blitz-March-12-2024"]
[Site "Chess.com"]
[Date "2024.03.12"]
[Round "8"]
[White "Ready4abattle"]
[Black "SlavenPastar"]
[Result "0-1"]
[WhiteElo "2399"]
[BlackElo "2561"]
[TimeControl "180+1"]
[EndTime "15:26:17 PDT"]
[Termination "SlavenPastar won by resignation"]

1. e4 {[%clk 0:03:00.9]} 1... b6 {[%clk 0:03:00.9]} 2. d4 {[%clk 0:03:00.7]}
2... Bb7 {[%clk 0:03:01.3]} 3. Bd3 {[%clk 0:03:01]} 3... Nf6 {[%clk 0:03:01.8]}
4. f3 {[%clk 0:02:57.3]} 4... d6 {[%clk 0:03:00.7]} 5. c4 {[%clk 0:02:56.5]}
5... e5 {[%clk 0:03:00.1]} 6. d5 {[%clk 0:02:53.1]} 6... c6 {[%clk 0:03:00.4]}
7. Ne2 {[%clk 0:02:50.4]} 7... cxd5 {[%clk 0:03:00.5]} 8. cxd5 {[%clk
0:02:50.2]} 8... Be7 {[%clk 0:03:01.1]} 9. O-O {[%clk 0:02:49.3]} 9... O-O
{[%clk 0:03:01.6]} 10. Nbc3 {[%clk 0:02:48.3]} 10... a6 {[%clk 0:03:01.5]} 11.
a4 {[%clk 0:02:48]} 11... Nbd7 {[%clk 0:03:02.1]} 12. Be3 {[%clk 0:02:47]} 12...
Nc5 {[%clk 0:03:02.4]} 13. Bc2 {[%clk 0:02:45]} 13... a5 {[%clk 0:03:01.9]} 14.
g4 {[%clk 0:02:40.4]} 14... Ba6 {[%clk 0:03:01.6]} 15. Rf2 {[%clk 0:02:36.6]}
15... Nfd7 {[%clk 0:02:54.1]} 16. Ng3 {[%clk 0:02:32]} 16... g6 {[%clk
0:02:54.6]} 17. Nb5 {[%clk 0:02:24.6]} 17... Bxb5 {[%clk 0:02:49.5]} 18. axb5
{[%clk 0:02:24.4]} 18... Bg5 {[%clk 0:02:50.1]} 19. Qd2 {[%clk 0:02:22.1]} 19...
h6 {[%clk 0:02:45.4]} 20. Bxg5 {[%clk 0:02:18.6]} 20... Qxg5 {[%clk 0:02:46.3]}
21. Qxg5 {[%clk 0:02:16.9]} 21... hxg5 {[%clk 0:02:47.2]} 22. Nf1 {[%clk
0:02:07.3]} 22... Kg7 {[%clk 0:02:45.1]} 23. Ne3 {[%clk 0:02:07.4]} 23... Kf6
{[%clk 0:02:41.3]} 24. b3 {[%clk 0:02:04.8]} 24... Ke7 {[%clk 0:02:41.1]} 25.
Nc4 {[%clk 0:02:03]} 25... Rab8 {[%clk 0:02:38.6]} 26. Rff1 {[%clk 0:01:51.2]}
26... Kd8 {[%clk 0:02:37.5]} 27. Rfb1 {[%clk 0:01:50.6]} 27... Kc7 {[%clk
0:02:37.9]} 28. b4 {[%clk 0:01:50.7]} 28... axb4 {[%clk 0:02:37.3]} 29. Rxb4
{[%clk 0:01:50.8]} 29... Ra8 {[%clk 0:02:36.8]} 30. Rbb1 {[%clk 0:01:48.7]}
30... Nb7 {[%clk 0:02:24.4]} 31. Kf2 {[%clk 0:01:39.3]} 31... Ndc5 {[%clk
0:02:22.1]} 32. Kg3 {[%clk 0:01:35.7]} 32... Rh8 {[%clk 0:02:16.9]} 33. Rxa8
{[%clk 0:01:10.8]} 33... Rxa8 {[%clk 0:02:15.9]} 34. h4 {[%clk 0:01:11.7]} 34...
gxh4+ {[%clk 0:02:08.6]} 35. Kxh4 {[%clk 0:01:11.1]} 35... Ra2 {[%clk
0:02:08.2]} 36. Ne3 {[%clk 0:01:10.9]} 36... Ra3 {[%clk 0:02:03.3]} 37. Re1
{[%clk 0:01:10.9]} 37... Nd7 {[%clk 0:01:30.2]} 38. Kg5 {[%clk 0:01:06.9]} 38...
Rc3 {[%clk 0:01:28.2]} 39. Re2 {[%clk 0:00:55.4]} 39... Kd8 {[%clk 0:01:14.1]}
40. Nd1 {[%clk 0:00:53.6]} 40... Rc5 {[%clk 0:01:12.3]} 41. Bd3 {[%clk
0:00:52.1]} 41... Ke7 {[%clk 0:01:03.2]} 42. Rf2 {[%clk 0:00:52.4]} 42... Rc1
{[%clk 0:01:02]} 43. Ne3 {[%clk 0:00:27.2]} 43... Rc3 {[%clk 0:00:55.3]} 44. Rd2
{[%clk 0:00:27.1]} 44... Nbc5 {[%clk 0:00:53.9]} 0-1

[Event "Late-Titled-Tuesday-Blitz-March-12-2024"]
[Site "Chess.com"]
[Date "2024.03.12"]
[Round "8"]
[White "ChristopherYoo"]
[Black "Firouzja2003"]
[Result "0-1"]
[WhiteElo "3009"]
[BlackElo "3149"]
[TimeControl "180+1"]
[EndTime "15:26:20 PDT"]
[Termination "Firouzja2003 won on time"]

1. d4 {[%clk 0:03:00.9]} 1... Nf6 {[%clk 0:03:00]} 2. c4 {[%clk 0:03:01.2]} 2...
g6 {[%clk 0:03:00.4]} 3. Nc3 {[%clk 0:03:01.3]} 3... Bg7 {[%clk 0:03:01]} 4. Bg5
{[%clk 0:02:49.2]} 4... O-O {[%clk 0:02:58.2]} 5. e4 {[%clk 0:02:34.3]} 5... c5
{[%clk 0:02:57.8]} 6. d5 {[%clk 0:02:33.3]} 6... h6 {[%clk 0:02:54.6]} 7. Be3
{[%clk 0:02:32.4]} 7... d6 {[%clk 0:02:54.6]} 8. f3 {[%clk 0:02:30.2]} 8... e6
{[%clk 0:02:52.4]} 9. Qd2 {[%clk 0:02:29.3]} 9... exd5 {[%clk 0:02:51.3]} 10.
cxd5 {[%clk 0:02:29.3]} 10... Re8 {[%clk 0:02:41.8]} 11. Bd3 {[%clk 0:02:22.1]}
11... a6 {[%clk 0:02:39.8]} 12. a4 {[%clk 0:02:21.7]} 12... Nbd7 {[%clk
0:02:36.9]} 13. Nge2 {[%clk 0:02:20.9]} 13... Ne5 {[%clk 0:02:37.3]} 14. O-O
{[%clk 0:02:20.8]} 14... Bd7 {[%clk 0:02:37.4]} 15. a5 {[%clk 0:02:07.7]} 15...
b5 {[%clk 0:02:35.4]} 16. axb6 {[%clk 0:02:07.3]} 16... Qxb6 {[%clk 0:02:36.1]}
17. Na4 {[%clk 0:01:56.1]} 17... Qb7 {[%clk 0:02:25.3]} 18. Nc1 {[%clk
0:01:39.5]} 18... Bb5 {[%clk 0:02:19.6]} 19. Be2 {[%clk 0:01:09.7]} 19... Kh7
{[%clk 0:01:47.2]} 20. Nc3 {[%clk 0:01:05.8]} 20... Nc4 {[%clk 0:01:38.5]} 21.
Bxc4 {[%clk 0:01:04.4]} 21... Bxc4 {[%clk 0:01:39.4]} 22. Rf2 {[%clk 0:01:04.4]}
22... Nd7 {[%clk 0:01:39.5]} 23. Qc2 {[%clk 0:00:43.2]} 23... Ne5 {[%clk
0:01:38.1]} 24. h3 {[%clk 0:00:40.4]} 24... Bb5 {[%clk 0:01:37.7]} 25. Nb3
{[%clk 0:00:36.6]} 25... Nc4 {[%clk 0:01:13.5]} 26. Na5 {[%clk 0:00:35.7]} 26...
Nxa5 {[%clk 0:01:13.8]} 27. Rxa5 {[%clk 0:00:35.4]} 27... Bd7 {[%clk 0:01:13]}
28. Qd3 {[%clk 0:00:32.8]} 28... Qb4 {[%clk 0:01:11.5]} 29. Ra1 {[%clk
0:00:26.1]} 29... a5 {[%clk 0:01:12.1]} 30. h4 {[%clk 0:00:20.4]} 30... h5
{[%clk 0:01:05.9]} 31. g3 {[%clk 0:00:12]} 31... a4 {[%clk 0:01:05.7]} 32. Ra3
{[%clk 0:00:02.7]} 32... Rab8 {[%clk 0:00:55.2]} 33. Kg2 {[%clk 0:00:02.5]}
33... Qa5 {[%clk 0:00:55.1]} 34. Qd2 {[%clk 0:00:02.2]} 34... Rb3 {[%clk
0:00:41.2]} 0-1